Cogmind - Beta 13 @@@ ROGUE MODE // 2024.05.13 @ 13:01:56 // Winter2019/RPGLIKE Player: boggy Result: Destroyed by CT-NNC(R) with Subdweller Shrapnel Launcher Performance ------------- Evolutions (0) 0 Regions Visited (2) 400 Robots Destroyed (38) 190 Value Destroyed (995) 995 Prototype IDs (0) 0 Alien Tech Used (0) 0 Bonus (49) 49 TOTAL SCORE: 1634 Bonus ------- High Alert Combat Kills 49 Cogmind --------- Core Integrity 0/600 Matter 32/500 Energy 240/250 System Corruption 2% Temperature Cool (7) Movement Rolling (80) Location -10/Subcaves Parts ------- > --- POWER (1) -------- Ion Engine > --- PROPULSION (2) --- Wheel Wheel > --- UTILITY (4) ------ High-capacity Matter Pod Structural Scanner Improved Terrain Scanner > --- WEAPON (3) ------- Beam Cannon Beam Cannon Grenade Launcher > --- INVENTORY (0) ---- (None) Peak State ------------ > --- POWER ------------ Ion Engine > --- PROPULSION ------- Wheel Wheel > --- UTILITY ---------- Structural Scanner Improved Terrain Scanner Seismic Detector > --- WEAPON ----------- Beam Cannon Light Assault Rifle Light Cannon > --- INVENTORY -------- (None) [Rating: 11] Favorites ----------- Power Ion Engine Engine Ion Engine Propulsion Wheel Wheel Wheel Utility Seismic Detector Device Seismic Detector Storage High-capacity Matter Pod Weapon Beam Cannon Energy Gun EM Pulse Gun Energy Cannon Beam Cannon Ballistic Gun Light Assault Rifle Ballistic Cannon Light Cannon Launcher Grenade Launcher Build | -11 -10 -10 ------- Run | Yrd Mat Sub Slots Evolved 6 | 4 1 1 Power . | . . . Propulsion 1 | 1 . . Utility 3 | 2 . 1 Weapon 2 | 1 1 . Parts Attached 23 | 10 13 . Power 1 | 1 . . Engine 1 | 1 . . Core . | . . . Reactor . | . . . Propulsion 5 | 4 1 . Treads . | . . . Leg . | . . . Wheel 5 | 4 1 . Hover . | . . . Flight . | . . . Utility 8 | 3 5 . Device 5 | 2 3 . Storage 3 | 1 2 . Processor . | . . . Hackware . | . . . Protection . | . . . Artifact . | . . . Weapon 9 | 2 7 . Energy Gun 1 | 1 . . Energy Cannon 3 | . 3 . Ballistic Gun 1 | 1 . . Ballistic Cannon 1 | . 1 . Launcher 3 | . 3 . Special Weapon . | . . . Impact Weapon . | . . . Slashing Weapon . | . . . Piercing Weapon . | . . . Special Melee Weapon . | . . . Unidentified Prototypes . | . . . Parts Lost 1 | . 1 . Power . | . . . Propulsion . | . . . Utility 1 | . 1 . Weapon . | . . . Highest Loss Streak 1 | . 1 . To Critical Strikes . | . . . Average Slot Usage (%) 92 | . 93 90 Engine 11 | . 11 10 Wheel 23 | . 23 20 Device 26 | . 27 20 Storage 2 | . 1 10 Energy Cannon 9 | . 7 20 Ballistic Gun 4 | . 5 . Ballistic Cannon 4 | . 5 . Launcher 9 | . 8 10 Naked Turns . | . . . Heaviest Build 20 | 11 20 20 Greatest Support 20 | 20 20 20 Greatest Overweight (x) . | . . . Average Overweight (x) . | . . . Largest Inventory Capacity . | . . . Average Capacity . | . . . Most Carried . | . . . Average Carried . | . . . Final Capacity . | . . . Final Carried . | . . . Class Distribution -------------------- 35% | Hacker-Skirmisher 33% | Scavenger-Skirmisher 28% | Scavenger-Mutant Dominant Class ---------------- Scavenger-Skirmisher | -10/Materials Hacker-Skirmisher | -10/Subcaves Resources | -11 -10 -10 ----------- Run | Yrd Mat Sub Matter Collected 1051 | 324 696 31 Remotely . | . . . Salvage Created 934 | 233 651 50 Parts 70 | 18 49 3 Haulers Intercepted 1 | . 1 . Recyclers Shooed 2 | 1 1 . Parts Field Recycled . | . . . Retrieved Matter . | . . . Parts Self-Destructed 13 | . . 13 Prevented . | . . . Kills | -11 -10 -10 ------- Run | Yrd Mat Sub Combat Hostiles Destroyed 19 | . 17 2 Cannons 11 | . 9 2 AOE 8 | . 8 . Classes Destroyed 10 | 3 6 1 Worker 2 | 2 . . Builder 2 | . 2 . Tunneler 6 | 5 1 . Hauler 1 | . 1 . Recycler 4 | 1 3 . Operator 1 | . 1 . Watcher 3 | . 3 . Swarmer 3 | . 3 . Grunt 15 | . 14 1 Sentry 1 | . . 1 Best Kill Streak 4 | 3 4 2 Combat Bots Only 3 | . 3 2 Max Kills in Single Turn 3 | 1 3 1 Gunslinging . | . . . Exploded 3 | . 3 . Melee . | . . . Uniques/NPCs Destroyed . | . . . Combat | -11 -10 -10 -------- Run | Yrd Mat Sub Hostile Shots Fired 74 | . 67 7 Missed 24 | . 23 1 Damage Taken 1119 | . 925 194 Core 920 | . 765 155 Absorbed by Shields . | . . . Redirected to Core 699 | . 558 141 Regen/Repaired (Parts) 12 | . 12 . Core Remaining (%) 100 | 100 . . Volleys Fired 146 | 34 108 4 Largest 3 | 2 3 3 Hottest 150 | 60 150 150 Shots Fired 301 | 48 241 12 Gun 122 | 48 74 . Cannon 130 | . 122 8 Launcher 49 | . 45 4 Special . | . . . Kinetic 182 | 34 148 . Thermal 55 | . 47 8 Explosive 49 | . 45 4 Electromagnetic 15 | 14 1 . Robot Hit Streak 10 | 7 10 2 Robot Miss Streak 4 | 2 4 2 Penetration Max . | . . . Secondary Targets . | . . . Shots Hit Robots 93 | 30 60 3 Core Hits 58 | 13 43 2 Critical Kills . | . . . Critical Parts Destroyed . | . . . Critical Strikes . | . . . Melee Attacks . | . . . Impact . | . . . Slashing . | . . . Piercing . | . . . Sneak Attacks . | . . . Combat Hostiles . | . . . Follow-up Attacks . | . . . Damage Inflicted 2345 | 288 1875 182 Guns 503 | 288 215 . Cannons 672 | . 603 69 Explosions 1170 | . 1057 113 Melee . | . . . Ramming . | . . . Kinetic 833 | 171 662 . Thermal 225 | . 156 69 Explosive 1170 | . 1057 113 Electromagnetic 117 | 117 . . Impact . | . . . Slashing . | . . . Piercing . | . . . Highest Corruption 2 | . 2 2 Average Corruption 1 | . 1 2 Corruption Purged . | . . . Corruption Blocked . | . . . Effects 10 | . 8 2 Message Errors 1 | . 1 . Matter Fused 1 | . 1 . Heat Flow Errors 2 | . 2 . Energy Discharges 2 | . 1 1 Data Loss (minor) 2 | . 2 . Data Loss (major) 1 | . . 1 Misfires 1 | . 1 . Overload Shots . | . . . Overflow Damage 91 | . 91 . Projectiles 9 | . 9 . Explosions 82 | . 82 . Melee . | . . . Knockbacks 5 | . 5 . Impact . | . . . Kinetic 5 | . 5 . Secondary . | . . . Self-Inflicted Damage 121 | . 121 . Shots 6 | . 6 . Rammed . | . . . Targets Rammed . | . . . Kicked . | . . . Crushed . | . . . Highest Temperature 201 | . 201 7 Average Temperature 38 | . 39 4 Received Heat Transfer 318 | . 291 27 Siege Activations . | . . . Robots Corrupted . | . . . Combat Hostiles . | . . . Parts Fried 1 | 1 . . Impact Corruptions . | . . . Robots Melted . | . . . Combat Hostiles . | . . . Parts Melted . | . . . Heat Transferred 481 | . 333 148 Parts Sabotaged . | . . . Parts Stolen . | . . . Parts Stripped . | . . . Power Chain Reactions . | . . . Alert | -11 -10 -10 ------- Run | Yrd Mat Sub Peak Influence 992 | 40 992 . Initial 26 | . 26 . Average 455 | 17 522 . Maximum Alert Level 3 | . 3 . Low Security (%) 24 | 100 12 . Level 1 23 | . 26 . Level 2 23 | . 27 . Level 3 29 | . 33 . Level 4 . | . . . Level 5 . | . . . High Security . | . . . Max Security . | . . . Squads Dispatched 5 | . 5 . Investigation 4 | . 4 . Extermination . | . . . Reinforcement 1 | . 1 . Assault . | . . . Garrison . | . . . Intercept . | . . . Searches Triggered . | . . . Construction Impeded . | . . . Haulers Reinforced . | . . . Active Scanning Responses . | . . . Cargo Convoy Interrupts . | . . . Stealth | -11 -10 -10 --------- Run | Yrd Mat Sub Distress Signals 1 | . 1 . Communications Jammed . | . . . Distress Signals . | . . . Times Spotted 29 | . 25 4 Peak Tracking Total 5 | . 5 2 Tactical Retreats 1 | . 1 . Traps | -11 -10 -10 ------- Run | Yrd Mat Sub Traps Triggered 1 | . 1 . Indirectly . | . . . Trap Hack Attempts . | . . . Triggered . | . . . Disarmed . | . . . Reprogrammed 1 | . 1 . Reused 1 | . 1 . Traps Extracted . | . . . Installed . | . . . Triggered 1 | . 1 . Machines | -11 -10 -10 ---------- Run | Yrd Mat Sub Machines Disabled 24 | . 24 . Max in Single Turn 2 | . 2 . Machines Repaired . | . . . Machines Dismantled . | . . . Machines Sabotaged . | . . . Overloaded Fab Kills . | . . . Hacking | -11 -10 -10 --------- Run | Yrd Mat Sub Machines Accessed 8 | . 8 . Terminals 6 | . 6 . Fabricators . | . . . Repair Stations 1 | . 1 . Recycling Units 1 | . 1 . Scanalyzers . | . . . Garrison Access . | . . . Total Hacks 29 | . 29 . Successful 12 | . 12 . Failed 17 | . 17 . Catastrophic 3 | . 3 . Database Lockouts . | . . . Manual . | . . . Terminals 20 | . 20 . Fabricators . | . . . Repair Stations 4 | . 4 . Recycling Units 5 | . 5 . Scanalyzers . | . . . Garrison Access . | . . . Terminal Hacks 6 | . 6 . Alert Level 1 | . 1 . Locate Traps 1 | . 1 . Reprogram Traps 1 | . 1 . Dispatch Records 1 | . 1 . Reinforcement Status 1 | . 1 . Zone Layout 1 | . 1 . Fabricator Hacks . | . . . Repair Station Hacks 3 | . 3 . Scan Component 2 | . 2 . Repair 1 | . 1 . Recycling Unit Hacks 3 | . 3 . Retrieve Matter 3 | . 3 . Scanalyzer . | . . . Garrison Access Hacks . | . . . Unauthorized Hacks . | . . . Terminals . | . . . Fabricators . | . . . Repair Stations . | . . . Recycling Units . | . . . Scanalyzers . | . . . Garrison Access . | . . . Data Cores Recovered . | . . . Used . | . . . Hacking Detections 8 | . 8 . Full Trace Events 5 | . 5 . Feedback Events 1 | . 1 . Corruption 1 | . 1 . Feedback Blocked . | . . . Robot Schematics Acquired . | . . . Robots Built . | . . . Authchips . | . . . Time . | . . . Total Robot Build Rating . | . . . Part Schematics Acquired . | . . . Parts Built . | . . . Authchips . | . . . Time . | . . . Total Part Build Rating . | . . . Parts Repaired 1 | . 1 . Time 26 | . 26 . Parts Recycled . | . . . Recycled Matter . | . . . Retrieved Matter . | . . . Retrieved Components . | . . . Parts Scanalyzed . | . . . Part Schematics Acquired . | . . . Parts Damaged . | . . . Bothacking | -11 -10 -10 ------------ Run | Yrd Mat Sub Used RIF Installer . | . . . Robots Hacked . | . . . Non-combat . | . . . Combat . | . . . Robot Hacks Applied . | . . . Relay Couplers Released . | . . . Fabnet Peak Effective % . | . . . Robots Rewired . | . . . Allies Hacked . | . . . Hacks Repelled . | . . . Allies | -11 -10 -10 -------- Run | Yrd Mat Sub Total Allies . | . . . Largest Group . | . . . Highest-Rated Group . | . . . Highest-Rated Ally . | . . . Total Orders . | . . . Ally Attacks . | . . . Total Damage . | . . . Kills . | . . . Allies Corrupted . | . . . Allies Melted . | . . . Intel | -11 -10 -10 ------- Run | Yrd Mat Sub Robot Analysis Total . | . . . Derelict Logs Recovered . | . . . Drone Launches . | . . . Drone Recoveries . | . . . Exploration | -11 -10 -10 ------------- Run | Yrd Mat Sub Turns Passed 1564 | 187 1222 155 Spaces Moved 1326 | 116 1034 176 Core 9 | 9 . . Treads . | . . . Legs . | . . . Wheels 1317 | 107 1034 176 Hover . | . . . Flight . | . . . Fastest Speed 50 | 50 80 80 Average Speed 80 | 82 80 80 Slowest Speed 100 | 100 80 80 Overloaded Moves . | . . . Propulsion Burnouts . | . . . Robots Hopped . | . . . Cave-ins Triggered 1 | . 1 . Exploration Rate (%) 43 | 5 98 26 Regions Visited 2 Branch Regions 1 Pre-discovered Areas . | . . . Known Exits Taken . | . . . Unknown Exits Taken 2 | 1 1 . Scrap Searched . | . . . Spaces Dug . | . . . Terrain Destroyed 434 | . 416 18 Melee . | . . . Projectile . | . . . AOE 434 | . 416 18 Terrain Rammed . | . . . Walls Destroyed . | . . . Machines Disabled . | . . . Actions | -11 -10 -10 --------- Run | Yrd Mat Sub Total 1565 | 162 1221 182 Wait 41 | . 41 . Move 1324 | 115 1033 176 Hop . | . . . Pick Up . | . . . Fast Attach 21 | 9 12 . Attach . | . . . Detach . | . . . Swap 2 | 1 1 . Drop 12 | 3 9 . Fire 146 | 34 108 4 Melee . | . . . Ram . | . . . Kick . | . . . Crush . | . . . Escape Stasis . | . . . Rewire . | . . . Trap . | . . . Miscellaneous 19 | . 17 2 Route ------- -11/Scrapyard -10/Materials (discovered 5 exits: [*Mat x3] / [*Min] / [*Sub]) -10/Subcaves (discovered 1 exit: [*Mat]) History --------- Turn | Location | Event 18 | -11/Scrapyard | Discovered new exit (range 16) 91 | -11/Scrapyard | Upgraded with Propulsion slot (x1) 91 | -11/Scrapyard | Upgraded with Utility slot (x2) 91 | -11/Scrapyard | Upgraded with Weapon slot (x1) 188 | -11/Scrapyard | Entered Materials 271 | -10/Materials | Discovered new exit (range 16) 300 | -10/Materials | Build established: Scavenger-Mutant 405 | -10/Materials | Discovered new exit (range 8) 726 | -10/Materials | Reached level 2 751 | -10/Materials | Upgraded with Weapon slot (x1) 801 | -10/Materials | Build established: Scavenger-Skirmisher 900 | -10/Materials | Discovered new exit (range 13) 929 | -10/Materials | Crushed by falling debris 929 | -10/Materials | Core integrity fell below 50% 976 | -10/Materials | Reached level 3 1019 | -10/Materials | Discovered new exit (range 9) 1111 | -10/Materials | Repaired Grenade Launcher 1249 | -10/Materials | Core integrity fell below 20% 1262 | -10/Materials | Discovered new exit (range 13) 1410 | -10/Materials | Entered Subcaves 1412 | -10/Subcaves | Reached level 4 1415 | -10/Subcaves | Upgraded with Utility slot (x1) 1427 | -10/Subcaves | Build established: Hacker-Skirmisher 1461 | -10/Subcaves | A swath of the cavern ceiling suddenly collapsed 1509 | -10/Subcaves | Discovered new exit (range 15) 1562 | -10/Subcaves | Shifting Twisted Machinery released Sub. Beam Cannon 1565 | -10/Subcaves | Destroyed by CT-NNC(R) with Subdweller Shrapnel Launcher Last Messages --------------- LOCATION=UNKNOWN AMBIENT_HEAT=-10 GOAL=ESCAPE 01412_ Reached level 4. 01415_ Upgraded: Utility Slot (+1) 01430_ R6-3LT(z): "She is not going to be happy we haven't found any suitable candidates yet." 01431_ G-34 Mercenary destroyed. 01437_ Y-45 Defender destroyed. 01440_ The unstable cave ceiling collapses. 01442_ Imp. Ion Engine fries itself beyond repair. 01443_ System corrupted: Energy discharge (-52). 01443_ Acquired 31 matter. 01444_ Aluminum Leg fries itself beyond repair. 01447_ Ion Engine fries itself beyond repair. 01447_ Used Protomatter to restore core integrity (+33, depleted) 01459_ System corrupted: Substantial component data lost. A swath of the cavern ceiling suddenly collapses. 01509_ EXIT=FOUND Sub. Beam Cannon falls loose from the Twisted Machinery. Map ----- +----------------------------------------------------+ | ?????????????????????????????????????????????????? | | ?????????????????????????????????????????????????? | | ?????????????????????????????????????????????????? | | ?????????????????????????????????????????????????? | | ?????????????????????????????????????????????????? | | ?????????????????????????????????????????????????? | | ?????????????????????????????????????????????????? | | ?????????????????????????????????????????????????? | | ?????????????????????????????????????????????????? | | ?????????????????????????????????????????????????? | | ????????????????????????####?????????????????????? | | ???????????????????????#######???????????????????? | | ???????????????????????## ###? ?????????????????? | | ???????????????????????# ##? ?????????????????? | | ???????????????????????? ## #??????????????? | | ???????????????????????? ## ##??????????????? | | ???????????????????????? ##??????????????? | | ???????????????????????# ##??????????????? | | ???????????????????????## ##??????????????? | | ???????????????????????## " "?????????????????? | | ???????????????????????## " ##?????????????????? | | ?????????????????????#### ] ##?????????????????? | | ??????????????????##?#### ### ###?????????????? | | ???????????????????#### ;; ;## ###?????????????? | | ???#??????????????#####;; ; ##?????????????? | | ??????????????#### ; @ ###?????????????? | | ###?"???######## ;# ###??????????????? | | ###??? ######## ; ; ;;#####??????????????? | | # ???#### ;;;# ###??????????????? | | # "???## ### ###?????????????? | | ?? "???### ## "##?????????????? | | #### "###### ## #### "#?????????????? | | #### "##### ### """## # ""?????????????? | | ### "" ## ###" " ? R ""?????????????? | | ## " ####" " R ""#????????????? | | ### ## #####""" % "###????????????? | | ??####### ######### ## "# "####????????????? | | ######### #####?######### #######?????????????? | | ######### ###???#####" ? "##???????????????? | | ##### ###???????????? ??????????????????? | | ## ###????????????? ??????????????????? | | ###????????????????????????????????? | | #####??????????????????????????????? | | #####?????????????????????????????? | | ## ###?????????????????????????????? | | ## ##?????????????????????????????? | | ### ####?????????????????????????????? | | #### ####?????????????????????????????? | | ##### ##???????????????????????????????? | | # ###### ###??????????????????????????????? | +----------------------------------------------------+ Best States ------------- Heat Dissipation 37 Energy Generation 10 Energy Capacity 250 Matter Stores 306 Matter Capacity 500 Sight Range 16 Robot Scan Range 10 Terrain Scan Range 16 Terrain Scan Density 10 Evasion (%) 44 Offensive Hacking 20 Item Schematics ----------------- None Robot Schematics ------------------ None Fabricated ------------ Nothing Alien Tech Used ----------------- None Achievements -------------- None Challenges ------------ None RPGLIKE | -11 -10 -10 --------- Run | Yrd Mat Sub Levels Raised 3 | . 2 1 XP Earned 8314 | 3000 4114 1200 XP Spent 6820 | 2920 2800 1100 Upgrades 17 | 11 5 1 Propulsion Slot 1 | 1 . . Utility Slot 3 | 2 . 1 Weapon Slot 2 | 1 1 . Heat Dissipation 2 | 2 . . Sensor Range 5 | 5 . . Hack Attack % 4 | . 4 . Protomatter Created 178 | . 139 39 Integrity Restored 339 | . 306 33 Core 306 | . 273 33 Parts 33 | . 33 . Protomatter Decayed 61 | . 16 45 Game ------ Seed AblativeTerrabombTerrabomb Manual? 0 Play Time 00:15:39 Cumulative 25.4 hours Start 2024.05.13 @ 12:35:49 End 2024.05.13 @ 13:01:56 Sessions 1 Manual Loads 0 Difficulty Rogue Special Mode Winter2019/RPGLIKE Game No. 26 Rogue 26 Adventurer 0 Explorer 0 Win Type - Total 0 Types 0/0/0/0/0/0/0/0/0 Lore% 19 Gallery% 21 Achievement% 26 Wizard Run 0 Options --------- Layout 0 ASCII 0 Keyboard 0 Movement Mouse Keybinds 0 Fullscreen 2 Font 14/SmallcapsGlow Map View 36x27 Zoom Use 99% Tactical HUD 1 Map Filters NONE Filters NONE Steam 1 RUN: 56b871a5-c174-4b6c-bc21-e515a326612b